Cogmind - Beta 15 @@@ ROGUE MODE // 2025.08.26 @ 16:17:18 Player: Waste Result: Destroyed by S-43 Plague with Heavy Machine Gun Performance ------------- Evolutions (9) 4500 Regions Visited (26) 5200 Robots Destroyed (344) 1720 Value Destroyed (20622) 20622 Prototype IDs (83) 1660 Alien Tech Used (6) 1200 Bonus (19196) 19196 TOTAL SCORE: 54098 Bonus ------- Triggered High Security 500 High Alert Combat Kills 7702 Follower Combat Kills 1700 Network Hubs Disabled 200 Registered with UFD 300 Met Optimus in HQ 500 Met Data Miner 300 Met Zhirov 300 Built Enhanced Grunts 300 A7 Reached Mainframe 300 Met R17 at Cetus 500 Met R17 at Research 2000 Destroyed MAIN.C Guards 500 Met MAIN.C 5000 Friendly Fire -906 Cogmind --------- Core Integrity 0/1600 Matter 243/425 Energy 699/700 System Corruption 58% Temperature Cool (0) Movement Core (50) Location -1/Command Parts ------- > --- POWER (3) -------- (None) > --- PROPULSION (8) --- (None) > --- UTILITY (11) ----- Experimental Energy Well Graphene Brace > --- WEAPON (3) ------- (None) > --- INVENTORY (5) ---- Zero-point Reactor Long-range Sensor Array Null Cannon Improved Potential Cannon Peak State ------------ > --- POWER ------------ Heavy Antimatter Reactor Quantum Reactor Reinforced Quantum Reactor > --- PROPULSION ------- Experimental Flexi-carbon Leg Centrium Leg Centrium Leg Heavy Shield Leg Myomer Exoskeleton > --- UTILITY ---------- Huge Storage Unit Advanced Signal Interpreter Advanced Targeting Computer Advanced Transmission Jammer Heavy Regenerative Plating Experimental EM Shield Advanced Force Field Advanced Hacking Suite Advanced Hacking Suite Experimental Hacking Suite > --- WEAPON ----------- Enhanced Quantum Rifle Nova Cannon Null Cannon > --- INVENTORY -------- Advanced Myomer Leg Centrium Leg Advanced Heat Sink Experimental Energy Well Experimental Energy Well Deep Structural Scanner Long-range Sensor Array Improved Particle Accelerator Experimental Reaction Control System Advanced Phase Shifter Advanced Focal Shield Improved Shock Absorption System Improved Point Defense System Transdimensional Reconstructor High-powered Transdimensional Reconstructor Compact HERF Cannon Compact HERF Cannon Potential Cannon Improved Potential Cannon Enhanced Hardcell Cannon Enhanced Hardcell Cannon Fusion Bomb Launcher Fusion Bomb Launcher [Rating: 231] Favorites ----------- Power Fission Core Engine Ion Engine Power Core Fission Core Reactor Quantum Reactor Propulsion Flexi-carbon Leg Treads Improved Medium Treads Leg Flexi-carbon Leg Utility Advanced Hacking Suite Device Advanced Heat Sink Storage Large Storage Unit Processor Advanced Signal Interpreter Hackware Advanced Hacking Suite Protection Centrium Medium Armor Plating Weapon Advanced KE Penetrator Energy Gun Enhanced Quantum Rifle Energy Cannon Phase Cannon Ballistic Gun Advanced KE Penetrator Ballistic Cannon Improved Light Cannon Launcher Fusion Bomb Launcher Build | -11 -10 -10 -8 -8 -6 -6 -6 -6 -5 -5 -5 -5 -5 -5 -4 -4 -4 -4 -3 -3 -3 -2 -2 -2 -1 -1 ------- Run | Yrd Mat Sub Rec Scr Fac Low Low Dat Pro Fac Ext Cet Arc Hub Fac Upp Upp Zhi Pro Res Tes Res Qua Sec Acc Com Slots Evolved 18 | . . . . . 8 . . . . 2 . . . . 2 . . . . 2 . 2 . . 2 . Power 2 | . . . . . . . . . . . . . . . 1 . . . . . . 1 . . . . Propulsion 6 | . . . . . 2 . . . . 2 . . . . . . . . . . . 1 . . 1 . Utility 9 | . . . . . 6 . . . . . . . . . . . . . . 2 . . . . 1 . Weapon 1 | . . . . . . . . . . . . . . . 1 . . . . . . . . . . . Parts Attached 225 | 1 2 15 1 8 26 1 . . 1 8 16 8 5 8 25 3 . 3 . 11 22 8 13 6 13 21 Power 20 | . . 1 . 1 5 1 . . . 1 1 1 . 1 1 . . 1 . . . 3 . 1 . 2 Engine 3 | . . 1 . 1 1 . . . . . . . . . . . . . . . . . . . . . Core 8 | . . . . . 4 1 . . . 1 1 . . . . . . . . . . . . . . 1 Reactor 9 | . . . . . . . . . . . . 1 . 1 1 . . 1 . . . 3 . 1 . 1 Propulsion 60 | . . 4 . 1 5 . . . . 5 8 2 . . 10 . . . . 6 4 2 3 . 3 7 Treads 19 | . . 4 . 1 . . . . . . 7 2 . . 2 . . . . . . . . . . 3 Leg 41 | . . . . . 5 . . . . 5 1 . . . 8 . . . . 6 4 2 3 . 3 4 Wheel . | . . . . . . . . . . . . . . . . . . . . . . . . . . . Hover . | . . . . . . . . . . . . . . . . . . . . . . . . . . . Flight . | . . . . . . . . . . . . . . . . . . . . . . . . . . . Utility 100 | . 2 1 1 . 14 . . . . 1 7 3 4 5 11 3 . 2 . 4 10 2 10 4 6 10 Device 56 | . . . . . 11 . . . . . 1 . 4 3 7 2 . 1 . 1 5 2 7 3 3 6 Storage 10 | . 1 . . . . . . . . . . . . . 2 . . . . . 4 . . . 1 2 Processor 10 | . 1 . . . 2 . . . . 1 . . . 1 1 1 . . . 1 . . 1 . 1 . Hackware 5 | . . . . . . . . . . . 1 1 . . . . . . . 1 . . 1 . 1 . Protection 19 | . . 1 1 . 1 . . . . . 5 2 . 1 1 . . 1 . 1 1 . 1 1 . 2 Artifact . | . . . . . . . . . . . . . . . . . . . . . . . . . . . Weapon 45 | 1 . 9 . 6 2 . . . 1 1 . 2 1 2 3 . . . . 1 8 1 . 1 4 2 Energy Gun 6 | . . 3 . . . . . . . . . . 1 . . . . . . . . . . . 2 . Energy Cannon 18 | . . 3 . 4 1 . . . . 1 . . . 1 . . . . . 1 6 . . . . 1 Ballistic Gun 11 | 1 . 1 . . 1 . . . . . . 2 . 1 2 . . . . . 2 1 . . . . Ballistic Cannon 4 | . . . . 2 . . . . . . . . . . . . . . . . . . . . 1 1 Launcher 6 | . . 2 . . . . . . 1 . . . . . 1 . . . . . . . . 1 1 . Special Weapon . | . . . . . . . . . . . . . . . . . . . . . . . . . . . Impact Weapon . | . . . . . . . . . . . . . . . . . . . . . . . . . . . Slashing Weapon . | . . . . . . . . . . . . . . . . . . . . . . . . . . . Piercing Weapon . | . . . . . . . . . . . . . . . . . . . . . . . . . . . Special Melee Weapon . | . . . . . . . . . . . . . . . . . . . . . . . . . . . Unidentified Prototypes 35 | . . . . . 2 . . . . . . 3 1 1 . . . 4 . . 12 1 . 9 . 2 Corrupted Parts 7 | . . . . . . . . . . . . 2 . 2 . . . . . . . . . 1 . 2 System Corruption 25 | . . . . . . . . . . . . 8 . 7 . . . . . . . . . 1 . 9 Parts Lost 52 | . . 2 . . 2 . . . . 2 3 . . 5 3 . . . . . 1 2 1 3 2 26 Power 7 | . . 1 . . . . . . . 1 2 . . 1 . . . . . . . . . . . 2 Propulsion 13 | . . 1 . . . . . . . . . . . . . . . . . . . . . . 1 11 Utility 28 | . . . . . 2 . . . . 1 1 . . 3 1 . . . . . 1 1 1 3 1 13 Weapon 4 | . . . . . . . . . . . . . . 1 2 . . . . . . 1 . . . . Highest Loss Streak 5 | . . 1 . . 1 . . . . 1 1 . . 3 2 . . . . . 1 1 1 1 1 5 To Critical Strikes . | . . . . . . . . . . . . . . . . . . . . . . . . . . . Average Backups 17 | 6 12 14 15 13 14 15 15 15 15 13 14 14 15 14 14 15 19 19 20 19 20 22 21 20 22 19 Power 1 | 1 2 3 3 2 3 2 2 2 2 2 1 1 1 . . . . . 1 1 1 . . . . 1 Propulsion 1 | 4 4 3 2 2 1 2 2 2 2 . 1 . . . 1 2 2 2 2 2 2 1 1 1 2 1 Utility 6 | . . . 1 2 5 7 7 7 7 8 8 8 7 6 6 6 10 10 9 7 8 9 10 10 10 8 Weapon 6 | 1 4 8 9 7 4 3 4 4 3 3 3 5 7 7 6 6 7 7 7 7 7 9 7 7 7 7 Tool/Special . | . . . . . . . . . . . . . . . . . . . . . . . . . . . Unused Backups 71 | . 9 7 . 3 9 1 . . 1 . 6 3 . 2 3 . . 2 . 3 1 7 4 3 3 4 Power 10 | . 1 1 . 1 4 . . . . . . 1 . . . . . . . . . . . . . 2 Propulsion 15 | . 2 2 . . 1 1 . . . . 4 . . . 1 . . . . . . 3 1 . . . Utility 21 | . 2 1 . . 2 . . . . . 2 2 . . 1 . . 2 . . 1 2 2 1 3 . Weapon 20 | . 4 3 . 2 2 . . . 1 . . . . 2 1 . . . . 3 . 2 . . . . Tool/Special 5 | . . . . . . . . . . . . . . . . . . . . . . . 1 2 . 2 Average Slot Usage (%) 92 | . 98 99 100 96 93 94 94 85 94 94 96 93 87 87 91 100 100 84 100 99 98 90 90 90 83 73 Engine 3 | . 14 13 14 13 1 . . . . . . . . . . . . . . . . . . . . . Core 3 | . . . . . 17 22 22 22 22 19 13 2 . . . . . . . . . . . . . 1 Reactor 5 | . . . . . . . . . . . . 4 5 5 8 10 10 10 10 9 8 12 13 13 12 9 Treads 9 | . . 27 28 27 6 . . . . . 13 27 23 23 7 . . . . . . . . . . 2 Leg 15 | . 28 . . . 13 22 22 22 22 29 18 . . . 20 31 31 31 31 28 27 21 20 21 19 16 Device 13 | . . . . . 26 22 22 22 22 18 19 12 10 15 14 21 21 21 21 20 18 19 21 18 12 13 Storage 7 | . 23 14 14 13 5 5 5 5 5 5 5 5 5 5 5 5 5 5 5 4 4 4 4 4 4 4 Processor 5 | . 3 4 . . 4 5 5 5 5 6 5 5 5 5 7 5 5 5 5 7 9 5 6 6 7 6 Hackware 4 | . . . . . . . . . . . 1 9 11 10 5 5 5 5 5 9 9 8 5 8 11 3 Protection 6 | . . 9 14 13 4 5 5 5 5 5 7 11 11 6 5 5 5 5 5 4 3 4 4 3 4 5 Energy Gun 1 | . . 6 . . . . . . . . . . . . . . . . . . . . . . 2 3 Energy Cannon 9 | . . 15 27 18 11 11 11 2 10 10 10 6 . 4 4 4 5 . 5 4 4 4 3 5 7 5 Ballistic Gun 4 | . 28 6 . . . . . . . . . 4 11 5 9 10 10 . 10 9 8 7 8 6 1 . Peak Build Rating 231 | 6 9 16 16 28 97 97 97 97 97 105 101 124 125 126 138 131 131 132 132 154 179 197 208 208 231 231 Average Rating 116 | 6 7 13 13 15 83 96 97 89 96 102 93 108 123 121 124 127 129 111 131 150 158 194 199 201 220 193 On Entrance 108 | 6 6 9 15 13 28 97 97 97 97 97 96 88 124 125 118 125 131 130 132 132 154 179 197 198 205 231 Naked Turns 66 | . . . . 66 . . . . . . . . . . . . . . . . . . . . . . Heaviest Build 240 | 12 32 45 45 44 103 102 102 102 102 102 95 88 70 78 108 114 108 110 110 112 153 185 209 210 219 240 Greatest Support 253 | 20 20 40 40 50 80 75 75 75 75 116 166 220 220 220 220 117 117 117 117 145 181 209 211 221 253 253 Greatest Overweight (x) 6 | . 1 1 1 6 1 1 1 1 1 . 2 . . . 2 . . . . . 1 . 1 . . 2 Average Overweight (x) . | . . . 1 . . 1 1 1 1 . . . . . . . . . . . . . . . . . Largest Inventory Capacity 25 | 8 15 15 15 15 15 15 15 15 15 15 15 15 15 15 20 20 20 20 20 20 25 25 25 25 25 25 Average Capacity 18 | 8 14 15 15 14 15 15 15 15 15 15 15 15 15 15 15 20 20 20 20 20 20 25 25 25 25 22 Most Carried 25 | 6 15 15 15 15 15 15 15 15 15 15 15 15 15 15 15 16 20 20 20 20 25 25 25 25 25 25 Average Carried 18 | 6 12 14 15 13 14 14 15 15 15 13 14 14 15 14 14 15 19 19 20 19 20 24 24 24 24 21 Final Capacity 25 | 8 15 15 15 15 15 15 15 15 15 15 15 15 15 15 20 20 20 20 20 20 25 25 25 25 25 5 Final Carried 25 | 6 15 15 15 15 15 15 15 15 15 14 15 15 15 13 13 16 20 20 20 20 25 25 25 24 25 5 Class Distribution -------------------- 27% | Mutant 21% | Hacker-Skirmisher 13% | Generator-Mutant 9% | Scavenger-Skirmisher 8% | Hacker-Tank 7% | Scavenger-Mutant 3% | Scavenger-Tank 3% | Commander-Mutant Dominant Class ---------------- Mutant | -10/Materials Mutant | -10/Subcaves Mutant | -8/Recycling Mutant | -8/Scraptown Generator-Mutant | -6/Factory Generator-Mutant | -6/Lower Caves Generator-Mutant | -6/Lower Caves Generator-Mutant | -6/Data Miner Generator-Mutant | -5/Proximity Caves Generator-Mutant | -5/Factory Scavenger-Mutant | -5/Extension Scavenger-Mutant | -5/Cetus Scavenger-Mutant | -5/Archives Scavenger-Skirmisher | -5/Hub_04(d) Scavenger-Tank | -4/Factory Scavenger-Skirmisher | -4/Upper Caves Scavenger-Skirmisher | -4/Upper Caves Scavenger-Mutant | -4/Zhirov Scavenger-Skirmisher | -3/Proximity Caves Hacker-Skirmisher | -3/Research Hacker-Skirmisher | -3/Testing Hacker-Skirmisher | -2/Research Infiltrator-Skirmisher | -2/Quarantine Hacker-Tank | -2/Section 7 Hacker-Skirmisher | -1/Access Hacker-Gunner | -1/Command Resources | -11 -10 -10 -8 -8 -6 -6 -6 -6 -5 -5 -5 -5 -5 -5 -4 -4 -4 -4 -3 -3 -3 -2 -2 -2 -1 -1 ----------- Run | Yrd Mat Sub Rec Scr Fac Low Low Dat Pro Fac Ext Cet Arc Hub Fac Upp Upp Zhi Pro Res Tes Res Qua Sec Acc Com Matter Collected 9132 | 200 . 277 63 100 290 130 7 . 106 111 252 172 336 177 528 122 87 . 51 381 906 390 985 1503 958 1000 Remotely . | . . . . . . . . . . . . . . . . . . . . . . . . . . . Salvage Created 19054 | . . 390 218 . 426 56 . . 2 411 1847 201 326 361 561 15 . . 1 641 1452 769 1279 3354 4282 2462 Parts 851 | . . 28 15 . 25 1 . . 1 20 58 11 30 20 34 . . . 2 23 67 36 72 159 163 86 Haulers Intercepted 9 | . . . . . . . . . . . . . . 1 . . . . . 5 . . . 3 . . Recyclers Shooed 7 | . . . . . . . . . . . 1 . . 2 . . . . . . 2 1 . . 1 . Parts Field Recycled . | . . . . . . . . . . . . . . . . . . . . . . . . . . . Retrieved Matter . | . . . . . . . . . . . . . . . . . . . . . . . . . . . Parts Self-Destructed 13 | . . 9 . . . 1 . . 1 . . . . . . . . . 2 . . . . . . . Prevented 3 | . . . . . . 3 . . . . . . . . . . . . . . . . . . . . Kills | -11 -10 -10 -8 -8 -6 -6 -6 -6 -5 -5 -5 -5 -5 -5 -4 -4 -4 -4 -3 -3 -3 -2 -2 -2 -1 -1 ------- Run | Yrd Mat Sub Rec Scr Fac Low Low Dat Pro Fac Ext Cet Arc Hub Fac Upp Upp Zhi Pro Res Tes Res Qua Sec Acc Com Combat Hostiles Destroyed 258 | . . 12 3 . 7 1 . . 2 7 20 3 . 3 9 . . . 1 . 16 9 17 38 53 57 Guns 55 | . . 5 . . . . . . . . . 2 . 2 4 . . . . . 9 3 8 9 8 5 Cannons 99 | . . 3 3 . 7 1 . . . 5 14 1 . 1 4 . . . . . 3 3 8 16 16 14 AOE 57 | . . 4 . . . . . . 2 2 . . . . . . . . 1 . . . . 4 12 32 Classes Destroyed 23 | . . 3 1 . 5 . . . 1 2 2 . 1 1 . . . . . 1 . 1 . 1 2 2 Worker 18 | . . . . . 1 . . . . 3 . . . 2 1 . . . . . . . . 1 5 5 Builder 8 | . . . . . . . . . . 1 1 . . . 1 . . . . . . . . 3 2 . Tunneler 1 | . . . . . . . . . . 1 . . . . . . . . . . . . . . . . Hauler 9 | . . . . . . . . . . . . . . 1 . . . . . 5 . . . 3 . . Recycler 13 | . . . 1 . . . . . . . 3 . . . . . . . . . 3 . . . 3 3 Mechanic 4 | . . . . . . . . . . . . . . . . . . . . . . . . 2 1 1 Operator 11 | . . . . . . . . . . . . . 9 . . . . . . . . 1 1 . . . Drone 3 | . . . . . . . . . 2 . . . . . . . . . 1 . . . . . . . Watcher 20 | . . . . . 1 . . . . . 2 . . 1 . . . . . 1 1 . 2 1 7 4 Swarmer 19 | . . 4 . . . . . . . . . . . . . . . . . . 2 . . 4 5 4 Cutter 2 | . . . . . . . . . . . . . . . . . . . . . . . . . . 2 Saboteur 1 | . . . . . . . . . . . . . . . . . . . . . . . . . . 1 Grunt 78 | . . . . . 3 1 . . . 5 10 . . . 2 . . . . . 3 3 5 11 15 20 Brawler 6 | . . . . . . . . . . . . . . . . . . . . . . 1 . . 2 3 Duelist 8 | . . . . . . . . . . . 1 . . . . . . . . . . . . 1 2 4 Protector 5 | . . . . . . . . . . . . . . . . . . . . . . . . . 1 4 Sentry 28 | . . 1 3 . . . . . . . 8 . . 1 1 . . . . . . . . 5 6 3 Hunter 30 | . . . . . 1 . . . . 2 . . . 2 . . . . . . 4 2 1 6 12 . Programmer 61 | . . . . . 3 . . . . . 1 . . . 6 . . . . . 7 3 11 10 9 11 Heavy 2 | . . . . . . . . . . . . . . . . . . . . . . . . . 1 1 Cetus Guard 3 | . . . . . . . . . . . . 3 . . . . . . . . . . . . . . S7 Guard 1 | . . . . . . . . . . . . . . . . . . . . . . . . 1 . . M Guard 2 | . . . . . . . . . . . . . . . . . . . . . . . . . . 2 Combat Programmer 2 | . . . . . . . . . . . . . . . . . . . . . . . . . . 2 Subdweller 7 | . . 7 . . . . . . . . . . . . . . . . . . . . . . . . Scrapoid 1 | . . . . . . . . . . . 1 . . . . . . . . . . . . . . . Decomposer 1 | . . . . . . . . . . . . . . . . 1 . . . . . . . . . . Revision 1 | . . . . . . . . . . . . . . . . . . . . 1 . . . . . . Best Kill Streak 18 | . . 4 3 . 2 1 . . 1 10 3 2 3 4 4 . . . 1 2 4 5 5 8 13 18 Combat Bots Only 15 | . . 4 2 . 2 1 . . 1 5 3 2 . 2 2 . . . 1 . 3 5 4 6 10 15 Max Kills in Single Turn 6 | . . 3 1 . 1 1 . . 1 6 1 1 1 2 1 1 . . 1 1 1 1 1 4 6 5 Gunslinging . | . . . . . . . . . . . . . . . . . . . . . . . . . . . Exploded 5 | . . 3 . . . . . . 1 2 . . . . . . . . 1 . . . . 4 5 5 Melee . | . . . . . . . . . . . . . . . . . . . . . . . . . . . Uniques/NPCs Destroyed . | . . . . . . . . . . . . . . . . . . . . . . . . . . . Combat | -11 -10 -10 -8 -8 -6 -6 -6 -6 -5 -5 -5 -5 -5 -5 -4 -4 -4 -4 -3 -3 -3 -2 -2 -2 -1 -1 -------- Run | Yrd Mat Sub Rec Scr Fac Low Low Dat Pro Fac Ext Cet Arc Hub Fac Upp Upp Zhi Pro Res Tes Res Qua Sec Acc Com Hostile Shots Fired 2218 | . . 45 8 . 63 1 . 2 . 54 103 17 11 51 98 12 . . . 11 134 52 132 294 454 676 Missed 874 | . . 8 3 . 15 1 . 1 . 11 29 4 4 8 25 4 . . . 5 61 22 62 149 188 274 Intercepted 4 | . . . . . . . . . . . . . . . . . . . . . . . . . . 4 Deflected 8 | . . . . . . . . . . . . . . . . . . . . . . . . . 8 . Hits 1344 | . . 37 5 . 48 . . 1 . 43 74 13 7 43 73 8 . . . 6 73 30 70 145 266 402 Melee 14 | . . . . . . . . . . . 1 . . . . . . . . . . . . 1 1 11 Projectile 1330 | . . 37 5 . 48 . . 1 . 43 73 13 7 43 73 8 . . . 6 73 30 70 144 265 391 AOE 14 | . . . . . . . . . . . . . . . 1 . . . . . . . . . . 13 Critical Strikes 74 | . . 1 . . 2 . . . . 1 5 4 . . 3 . . . . . 4 . 2 12 14 26 Actively Blocked 15 | . . . . . . . . . . . . . . . . . . . . . . . . . . 15 Part Disruptions 21 | . . . . . . . . 1 . . . . . . . . . . . . . 1 2 1 . 16 Actively Blocked 2 | . . . . . . . . . . . . . . . . . . . . . . 1 1 . . . Damage Taken 24732 | . . 710 71 . 754 . . 47 18 883 1450 346 225 859 1586 107 . . 12 150 1123 589 737 2392 3490 9183 Core 2623 | . . 145 15 . 129 . . . . 18 84 . 26 15 162 12 . . 4 . 131 38 62 166 241 1375 Absorbed by Shields 5273 | . . . . . . . . . . . 146 98 . . . 32 . . . . 86 . 576 278 1497 2560 Reduced by Siege Mode 7 | . . . . . . . . . . . . . 7 . . . . . . . . . . . . . Ignored by Resistances 3733 | . . . . . . . . . . . 50 14 . . 129 . . . . . 258 83 382 1124 742 951 Regen/Repaired (Parts) 5481 | . . . . . . . . . . . 157 . . . . . . . . . 360 29 334 2184 1079 1338 Core Remaining (%) 76 | 100 . . . 36 . . . . 84 . . . . 85 . . . . 84 . 89 . . 57 . . Volleys Fired 1043 | . 2 44 5 . 36 8 5 5 10 38 76 14 32 39 59 17 . . 5 26 67 37 98 157 152 111 Largest 3 | . 2 2 2 . 2 2 2 2 2 2 2 2 2 2 3 1 . . 1 3 3 3 3 3 3 3 Hottest 308 | . 40 160 160 . 170 170 170 170 170 175 175 175 70 125 160 90 . . 90 173 188 188 301 242 308 308 Shots Fired 1995 | . 4 81 10 . 70 17 11 7 18 59 150 28 64 62 96 17 . . 5 64 138 74 192 299 315 214 Gun 646 | . 4 42 . . . . . . . . . 18 64 22 36 . . . . 38 64 34 92 104 85 43 Cannon 1295 | . . 33 10 . 70 17 11 7 15 59 150 10 . 40 60 17 . . 4 26 74 40 100 194 223 135 Launcher 54 | . . 6 . . . . . . 3 . . . . . . . . . 1 . . . . 1 7 36 Special . | . . . . . . . . . . . . . . . . . . . . . . . . . . . Kinetic 545 | . 4 24 . . . . . . . . . 18 64 22 36 . . . . 38 64 34 92 104 45 . Thermal 1115 | . . 51 10 . 70 17 11 7 15 59 150 10 . 40 60 17 . . 4 26 57 28 94 112 151 126 Explosive 54 | . . 6 . . . . . . 3 . . . . . . . . . 1 . . . . 1 7 36 Electromagnetic 281 | . . . . . . . . . . . . . . . . . . . . . 17 12 6 82 112 52 Robot Hit Streak 27 | . 1 15 18 . 7 . 2 4 . 12 21 7 12 15 19 . . . . 9 14 14 12 21 25 27 Robot Miss Streak 6 | . 2 2 2 . 2 . . . 3 5 3 2 3 5 3 . . . . 6 3 2 3 3 3 4 Penetration Max 1 | . . . . . . . . . . . . 1 1 1 1 . . . . 1 1 . 1 1 1 . Secondary Targets 1 | . . . . . . . . . . . . . . . . . . . . . 1 . . . . . Max Gunslinging Chain 1 | . . . . . . . . . . . . . . . . . . . . . 1 . . . . . Shots Hit Robots 1092 | . 1 33 7 . 34 . 1 2 . 25 103 20 42 33 39 . . . . 28 79 39 96 158 207 145 Core Hits 579 | . . 19 4 . 12 2 . 1 1 15 44 11 19 13 16 . . . 1 14 28 12 33 68 106 160 Critical Kills 31 | . . . . . . . . . . . 4 . 2 2 2 . . . . . 2 3 5 7 4 . Critical Parts Destroyed 31 | . . . . . . . . . . . . 1 5 1 2 . . . . . 5 1 6 7 3 . Critical Strikes 69 | . . . . . . . . . . . 4 4 8 3 4 . . . . . 8 4 11 14 9 . Meltdown 9 | . . . . . . . . . . . 4 . . . 1 . . . . . 1 1 1 1 . . Destroy 57 | . . . . . . . . . . . . 4 8 3 3 . . . . . 6 3 10 13 7 . Blast 1 | . . . . . . . . . . . . . . . . . . . . . . . . . 1 . Corrupt 2 | . . . . . . . . . . . . . . . . . . . . . 1 . . . 1 . Melee Attacks . | . . . . . . . . . . . . . . . . . . . . . . . . . . . Impact . | . . . . . . . . . . . . . . . . . . . . . . . . . . . Slashing . | . . . . . . . . . . . . . . . . . . . . . . . . . . . Piercing . | . . . . . . . . . . . . . . . . . . . . . . . . . . . Sneak Attacks . | . . . . . . . . . . . . . . . . . . . . . . . . . . . Combat Hostiles . | . . . . . . . . . . . . . . . . . . . . . . . . . . . Follow-up Attacks . | . . . . . . . . . . . . . . . . . . . . . . . . . . . Damage Inflicted 59946 | . 11 847 216 . 1309 63 32 41 144 1534 3716 821 1175 1246 1485 20 . . 82 974 3289 1587 3781 6960 12477 18136 Guns 13371 | . 11 434 . . . . . . . . . 595 1174 523 716 . . . . 571 1571 521 1850 2177 2126 1102 Cannons 30127 | . . 202 193 . 1196 63 32 41 . 925 3548 226 . 675 769 . . . . 403 1617 1048 1931 4158 6550 6550 Explosions 15677 | . . 211 . . 113 . . . 144 609 . . . . . . . . 82 . . . . 625 3477 10416 Melee . | . . . . . . . . . . . . . . . . . . . . . . . . . . . Ramming 771 | . . . 23 . . . . . . . 168 . 1 48 . 20 . . . . 101 18 . . 324 68 Kinetic 11347 | . 11 271 . . . . . . . . . 595 1174 523 716 . . . . 571 1571 521 1850 2177 1367 . Thermal 25392 | . . 365 193 . 1309 63 32 41 . 1465 3548 226 . 675 769 . . . . 403 967 722 1795 2028 3734 7057 Explosive 13788 | . . 211 . . . . . . 144 69 . . . . . . . . 82 . . . . 543 3376 9363 Electromagnetic 8648 | . . . . . . . . . . . . . . . . . . . . . 650 326 136 2212 3676 1648 Impact . | . . . . . . . . . . . . . . . . . . . . . . . . . . . Slashing . | . . . . . . . . . . . . . . . . . . . . . . . . . . . Piercing . | . . . . . . . . . . . . . . . . . . . . . . . . . . . Highest Corruption 58 | . . . . . 1 1 1 1 1 . . 8 8 7 3 3 3 3 3 . 3 . 4 11 9 58 Average Corruption 5 | . . . . . 1 1 1 1 1 . . 6 6 3 2 3 3 3 3 . 2 . 2 7 2 21 Corruption Purged 8 | . . . . . . . . . . . . . 8 . . . . . . . . . . . . . Corruption Blocked . | . . . . . . . . . . . . . . . . . . . . . . . . . . . Effects 324 | . . . . . 5 6 11 1 5 . . 2 8 1 8 9 11 5 2 . 14 . 17 78 32 109 Message Errors 64 | . . . . . . 3 2 1 1 . . 2 1 . 3 1 2 . 1 . 4 . 6 18 9 10 Matter Fused 70 | . . . . . . . 1 . 1 . . . 2 . 2 2 6 2 . . 2 . 1 18 9 24 Heat Flow Errors 40 | . . . . . 1 . 3 . . . . . 2 . . 1 2 1 . . 2 . 2 10 3 13 Energy Discharges 34 | . . . . . 1 . 1 . 1 . . . 1 . 1 1 1 . . . 3 . 2 13 1 8 Parts Rejected 7 | . . . . . . . . . . . . . . . . . . . . . . . 1 . 1 5 Parts Fused 4 | . . . . . . . . . . . . . . . . . . 1 . . . . 1 1 . 1 Data Loss (minor) 40 | . . . . . 2 2 1 . 1 . . . 1 . 1 3 . 1 . . . . 2 9 1 16 Data Loss (major) 14 | . . . . . 1 . 2 . . . . . 1 . . 1 . . 1 . 2 . 1 2 2 1 Misfires 19 | . . . . . . 1 1 . 1 . . . . 1 1 . . . . . 1 . 1 3 3 6 Alerts 2 | . . . . . . . . . . . . . . . . . . . . . . . . . 1 1 Misdirections 11 | . . . . . . . . . . . . . . . . . . . . . . . . . . 11 Weapon Failures 19 | . . . . . . . . . . . . . . . . . . . . . . . . 4 2 13 Overload Shots . | . . . . . . . . . . . . . . . . . . . . . . . . . . . Overflow Damage 2569 | . . 1 . . 63 . 2 . 41 284 40 . . . 34 9 . . . . 107 23 151 265 696 853 Projectiles 1450 | . . . . . 63 . 2 . . . 40 . . . 34 . . . . . 66 23 151 165 331 575 Explosions 905 | . . 1 . . . . . . 41 284 . . . . . . . . . . . . . 100 201 278 Melee 214 | . . . . . . . . . . . . . . . . 9 . . . . 41 . . . 164 . Knockbacks 9 | . . . . . . . . . . . 1 . . 2 . . . . . . . . . . 6 . Impact 5 | . . . . . . . . . . . 1 . . 2 . . . . . . . . . . 2 . Kinetic 4 | . . . . . . . . . . . . . . . . . . . . . . . . . 4 . Secondary . | . . . . . . . . . . . . . . . . . . . . . . . . . . . Self-Inflicted Damage 534 | . . 136 . . . . . . 18 138 . . . . . . . . 12 . . . . . . 230 Shots 16 | . . 6 . . . . . . 1 2 . . . . . . . . 1 . . . . . . 6 Rammed 12 | . . . 5 . . . . . . . . . 1 3 . . . . . . . . . . . 3 Targets Rammed 34 | . . . 6 . . . . . . . 9 . 1 3 . 1 . . . . 2 1 . . 6 5 Kicked 20 | . . . . . . . . . . . 8 . . . . 1 . . . . 2 1 . . 6 2 Crushed 2 | . . . 1 . . . . . . . 1 . . . . . . . . . . . . . . . Highest Temperature 466 | . . 198 233 . 273 . 50 . 102 399 196 . 17 . 466 131 106 106 29 144 302 326 438 348 340 345 Average Temperature 89 | . . 55 109 . 64 . 22 . 57 142 84 . 17 . 107 21 55 62 21 54 86 128 84 73 52 117 Received Heat Transfer 2329 | . . 138 18 . 144 . . . . 199 493 17 9 39 117 7 . . . 9 62 9 48 178 374 468 Effects 23 | . . . 1 . 2 . . . . 5 . . . . 6 . . . . . . 4 2 1 1 1 Shutdowns 6 | . . . . . . . . . . 3 . . . . 1 . . . . . . 1 . 1 . . Energy Bleed 8 | . . . 1 . 2 . . . . 1 . . . . 3 . . . . . . . . . . 1 Interference 6 | . . . . . . . . . . 1 . . . . 2 . . . . . . 3 . . . . Matter Decay 2 | . . . . . . . . . . . . . . . . . . . . . . . 2 . . . Damage (minor) 1 | . . . . . . . . . . . . . . . . . . . . . . . . . 1 . Siege Activations 2 | . . . . . . . . . . . . . 1 1 . . . . . . . . . . . . Total Turns 21 | . . . . . . . . . . . . . 12 9 . . . . . . . . . . . . Longest Duration 12 | . . . . . . . . . . . . . 12 9 . . . . . . . . . . . . Martial Activations . | . . . . . . . . . . . . . . . . . . . . . . . . . . . Shielding Activations 6 | . . . . . . . . . . . . . . . . . . . . . . . . . 5 1 Total Turns 134 | . . . . . . . . . . . . . . . . . . . . . . . . . 114 20 Longest Duration 44 | . . . . . . . . . . . . . . . . . . . . . . . . . 44 20 Robots Disrupted . | . . . . . . . . . . . . . . . . . . . . . . . . . . . Combat Hostiles . | . . . . . . . . . . . . . . . . . . . . . . . . . . . Robots Corrupted 43 | . . . . . . . . . . . . . . . . 1 . . . . 5 2 . 8 20 7 Combat Hostiles 36 | . . . . . . . . . . . . . . . . . . . . . 3 2 . 8 17 6 Parts Fried 83 | . . . . . . . . . . . . . . . . 1 . . . . 7 5 2 23 37 8 Impact Corruptions 9 | . . . . . . . . . . . . . . . . 1 . . . . 2 . . . 6 . Robots Melted 12 | . . . . . . . . . . . 7 . . . 1 . . . . . 1 1 1 1 . . Combat Hostiles 11 | . . . . . . . . . . . 6 . . . 1 . . . . . 1 1 1 1 . . Parts Melted 51 | . . 1 . . 2 . . . . 3 18 . . 1 3 . . . . . 3 2 3 3 9 3 Heat Transferred 20315 | . . 459 259 . 1345 74 37 74 . 1473 3984 259 . 740 740 . . . . 407 777 592 1480 1654 3299 2662 Parts Sabotaged 1 | . . . . . . . . . . . . . . . . . . . . . . . . . 1 . Parts Stolen . | . . . . . . . . . . . . . . . . . . . . . . . . . . . Parts Stripped . | . . . . . . . . . . . . . . . . . . . . . . . . . . . Power Chain Reactions 2 | . . . . . . . . . . . . . . . . . . . . . . . . 1 1 . Alert | -11 -10 -10 -8 -8 -6 -6 -6 -6 -5 -5 -5 -5 -5 -5 -4 -4 -4 -4 -3 -3 -3 -2 -2 -2 -1 -1 ------- Run | Yrd Mat Sub Rec Scr Fac Low Low Dat Pro Fac Ext Cet Arc Hub Fac Upp Upp Zhi Pro Res Tes Res Qua Sec Acc Com Maximum Alert Level 5 | . . . . . . . . . . 2 3 2 1 2 1 . . . . . . . 1 3 5 5 Low Security (%) 47 | 100 100 . 100 . 100 . . . . 54 . . 6 22 73 . . . . 100 100 100 91 12 . . Level 1 14 | . . . . . . . . . . 41 61 63 93 4 26 . . . . . . . 8 20 . . Level 2 14 | . . . . . . . . . . 4 25 36 . 72 . . . . . . . . . 39 30 . Level 3 9 | . . . . . . . . . . . 11 . . . . . . . . . . . . 27 32 6 Level 4 3 | . . . . . . . . . . . . . . . . . . . . . . . . . 12 20 Level 5 9 | . . . . . . . . . . . . . . . . . . . . . . . . . 22 72 High Security . | . . . . . . . . . . . . . . . . . . . . . . . . . 1 . Max Security . | . . . . . . . . . . . . . . . . . . . . . . . . . . . Peak Influence 2752 | . . . 60 . 145 . . . . 576 778 451 317 594 271 . . . . 29 159 178 345 1065 1885 2752 Initial 1206 | . . . 7 . . . . . . 300 277 421 147 79 262 . . . . . . 80 60 189 624 1206 Average 504 | . . . 9 . 50 . . . . 214 410 387 257 396 152 . . . . 2 70 119 88 549 1079 2117 Influence Increases 13163 | . . 220 229 . 377 20 . . 10 866 1257 346 345 1082 499 . . . 5 139 581 399 930 1525 1963 2370 Destroy 0b10 Robot/C 5480 | . . 100 60 . 140 20 . . . 140 580 160 80 320 180 . . . . . 320 180 340 760 1040 1060 Destroy 0b10 Robot/NC 520 | . . . 5 . 10 . . . 10 25 45 10 45 55 10 . . . 5 30 20 5 15 50 95 85 Destroy Leader 1006 | . . . . . 52 . . . . 20 66 . . 104 40 . . . . 12 52 30 64 138 234 194 Allied During Kill 1074 | . . . . . . . . . . . 423 144 120 387 . . . . . . . . . . . . Successful Hack 558 | . . . 41 . . . . . . . 58 6 . 7 18 . . . . 41 39 106 106 52 33 51 Select Force Hacks 170 | . . . 120 . . . . . . . . . . 50 . . . . . . . . . . . . Disable Machine 915 | . . . . . 120 . . . . 165 15 . 60 30 75 . . . . 30 75 15 90 135 45 60 Destroy Structure 2345 | . . . 3 . 40 . . . . 216 70 26 40 114 86 . . . . 26 60 33 285 330 276 740 Advance Influence 300 | . . . . . . . . . . 300 . . . . . . . . . . . . . . . . Partial Spotted 30 | . . . . . . . . . . . . . . 15 . . . . . . . . . . 15 . Lose Combat Pursuer 765 | . . 120 . . 15 . . . . . . . . . 90 . . . . . 15 30 30 60 225 180 Influence Decreases 10583 | . . 205 244 . 377 20 . . 10 298 1072 730 488 771 785 251 . . 5 139 438 435 701 819 1120 1675 Entered New Map 2723 | . . . 8 . . . . . . . 291 332 222 147 275 94 . . . . . 63 47 147 418 679 Time Decay 6500 | . . 195 236 . 357 20 . . 10 278 571 198 246 362 470 157 . . 5 139 428 342 586 632 682 586 Lost Part 510 | . . 10 . . 20 . . . . 20 30 . . 50 30 . . . . . 10 20 10 30 20 260 Lost Ally 550 | . . . . . . . . . . . 180 200 20 120 10 . . . . . . 10 . 10 . . Purge Threat 300 | . . . . . . . . . . . . . . 92 . . . . . . . . 58 . . 150 Squads Dispatched 81 | . . . . . 4 . . . . 4 2 . . 10 3 . . . . 4 5 3 6 10 16 14 Investigation 11 | . . . . . 2 . . . . 2 2 . . 1 . . . . . 2 . . . . 1 1 Extermination 32 | . . . . . 2 . . . . . . . . 1 3 . . . . 1 3 2 5 5 5 5 Reinforcement 21 | . . . . . . . . . . 1 . . . 6 . . . . . 1 2 1 1 4 3 2 Assault 16 | . . . . . . . . . . . . . . 2 . . . . . . . . . 1 7 6 Garrison 1 | . . . . . . . . . . 1 . . . . . . . . . . . . . . . . Intercept . | . . . . . . . . . . . . . . . . . . . . . . . . . . . Searches Triggered . | . . . . . . . . . . . . . . . . . . . . . . . . . . . Construction Impeded 3 | . . . . . . . . . . 1 . . . 2 . . . . . . . . . . . . Haulers Reinforced 3 | . . . . . . . . . . . . . . 1 . . . . . . . . . 2 . . Active Scanning Responses . | . . . . . . . . . . . . . . . . . . . . . . . . . . . Cargo Convoy Interrupts . | . . . . . . . . . . . . . . . . . . . . . . . . . . . Stealth | -11 -10 -10 -8 -8 -6 -6 -6 -6 -5 -5 -5 -5 -5 -5 -4 -4 -4 -4 -3 -3 -3 -2 -2 -2 -1 -1 --------- Run | Yrd Mat Sub Rec Scr Fac Low Low Dat Pro Fac Ext Cet Arc Hub Fac Upp Upp Zhi Pro Res Tes Res Qua Sec Acc Com Distress Signals 20 | . . . . . . . . . . 1 1 2 . 3 2 . . . . 4 1 . . 1 4 1 Communications Jammed 173 | . . . . . . . . . . . . . . . . . . . . 4 1 . 51 7 48 62 Distress Signals 167 | . . . . . . . . . . . . . . . . . . . . 4 1 . 50 7 43 62 Times Spotted 482 | . 1 18 2 . 9 1 . 1 2 16 35 9 25 20 21 7 . . . 11 28 11 27 50 83 105 Peak Tracking Total 19 | . 1 6 2 . 3 1 . 3 1 6 5 5 3 6 9 7 . . . 6 3 5 5 4 9 19 Tactical Retreats 29 | . . 2 . . 1 . . . . . . . . . 4 . . . . . 1 2 2 3 10 4 Traps | -11 -10 -10 -8 -8 -6 -6 -6 -6 -5 -5 -5 -5 -5 -5 -4 -4 -4 -4 -3 -3 -3 -2 -2 -2 -1 -1 ------- Run | Yrd Mat Sub Rec Scr Fac Low Low Dat Pro Fac Ext Cet Arc Hub Fac Upp Upp Zhi Pro Res Tes Res Qua Sec Acc Com Traps Triggered 15 | . . 1 . . 1 . . . . . . . . . . . . . . 1 3 1 1 2 5 . Indirectly . | . . . . . . . . . . . . . . . . . . . . . . . . . . . Trap Hack Attempts . | . . . . . . . . . . . . . . . . . . . . . . . . . . . Triggered . | . . . . . . . . . . . . . . . . . . . . . . . . . . . Disarmed . | . . . . . . . . . . . . . . . . . . . . . . . . . . . Reprogrammed . | . . . . . . . . . . . . . . . . . . . . . . . . . . . Reused . | . . . . . . . . . . . . . . . . . . . . . . . . . . . Traps Extracted . | . . . . . . . . . . . . . . . . . . . . . . . . . . . Installed . | . . . . . . . . . . . . . . . . . . . . . . . . . . . Triggered . | . . . . . . . . . . . . . . . . . . . . . . . . . . . Machines | -11 -10 -10 -8 -8 -6 -6 -6 -6 -5 -5 -5 -5 -5 -5 -4 -4 -4 -4 -3 -3 -3 -2 -2 -2 -1 -1 ---------- Run | Yrd Mat Sub Rec Scr Fac Low Low Dat Pro Fac Ext Cet Arc Hub Fac Upp Upp Zhi Pro Res Tes Res Qua Sec Acc Com Machines Disabled 66 | . . 1 . . 8 . . . . 11 4 . 4 2 5 . . . . 2 5 1 6 10 3 4 Max in Single Turn 7 | . . 1 . . 3 . . . . 7 1 . 2 1 1 . . . . 1 1 1 3 1 1 1 Garrison Access 6 | . . . . . . . . . . . . . . 1 . . . . . . 1 . 1 . 3 . Network Hub 1 | . . . . . . . . . . . . . . 1 . . . . . . . . . . . . Machines Repaired . | . . . . . . . . . . . . . . . . . . . . . . . . . . . Machines Dismantled . | . . . . . . . . . . . . . . . . . . . . . . . . . . . Machines Sabotaged 1 | . . . . . . . . . . . . . . 1 . . . . . . . . . . . . Overloaded Fab Kills . | . . . . . . . . . . . . . . . . . . . . . . . . . . . Hacking | -11 -10 -10 -8 -8 -6 -6 -6 -6 -5 -5 -5 -5 -5 -5 -4 -4 -4 -4 -3 -3 -3 -2 -2 -2 -1 -1 --------- Run | Yrd Mat Sub Rec Scr Fac Low Low Dat Pro Fac Ext Cet Arc Hub Fac Upp Upp Zhi Pro Res Tes Res Qua Sec Acc Com Machines Accessed 134 | . 2 2 11 3 5 1 . 3 . 4 11 1 . 4 7 2 2 4 . 7 10 5 11 16 15 8 Terminals 75 | . 2 . 6 . 2 . . . . 2 9 1 . 3 4 1 1 . . 1 6 2 7 13 9 6 Fabricators 4 | . . . . . . . . . . . . . . . 1 . . . . 2 1 . . . . . Repair Stations 9 | . . . . . . . . . . . 1 . . . . . . . . . 2 1 2 1 1 1 Recycling Units 12 | . . . 5 . 2 . . . . 2 1 . . . . . . . . 1 . . . . . 1 Scanalyzers 11 | . . . . . 1 . . . . . . . . . 2 . . . . 2 . 2 1 2 1 . Garrison Access 8 | . . . . . . . . . . . . . . 1 . . . . . 1 1 . 1 . 4 . Total Hacks 393 | . 4 4 31 28 11 1 . 24 . 5 23 2 . 9 22 2 2 17 . 21 40 19 40 33 32 23 Successful 242 | . . 4 17 28 5 1 . 24 . 3 10 1 . 6 10 2 2 17 . 14 23 13 25 15 15 7 Failed 151 | . 4 . 14 . 6 . . . . 2 13 1 . 3 12 . . . . 7 17 6 15 18 17 16 Catastrophic 25 | . 1 . . . 4 . . . . . 2 . . . . . . . . 2 1 . 4 5 2 4 Database Lockouts . | . . . . . . . . . . . . . . . . . . . . . . . . . . . Manual 151 | . 4 . 23 . 8 . . . . 4 13 1 . 6 15 . . . . 2 24 3 16 14 6 12 Terminals 200 | . 4 . 23 . 3 . . . . 3 18 2 . 8 15 1 1 . . 1 27 6 25 26 20 17 Fabricators 11 | . . . . . . . . . . . . . . . 2 . . . . 7 2 . . . . . Repair Stations 33 | . . . . . . . . . . . 1 . . . . . . . . . 10 6 8 2 3 3 Recycling Units 23 | . . . 8 . 5 . . . . 2 4 . . . . . . . . 1 . . . . . 3 Scanalyzers 40 | . . . . . 3 . . . . . . . . . 5 . . . . 11 . 7 6 5 3 . Garrison Access 10 | . . . . . . . . . . . . . . 1 . . . . . 1 1 . 1 . 6 . Terminal Hacks 124 | . . 4 2 28 . 1 . 24 . 1 5 1 . 2 1 2 2 17 . . 4 2 8 9 8 3 Record 37 | . . 3 . 21 . . . 6 . . . . . . . 1 1 5 . . . . . . . . Part Schematic 15 | . . . . . . . . 11 . . . . . . . . . 4 . . . . . . . . Robot Schematic 4 | . . . . . . . . 4 . . . . . . . . . . . . . . . . . . Robot Analysis 11 | . . . . 7 . . . . . . . . . . . . . 4 . . . . . . . . Prototype ID Bank 12 | . . . 2 . . . . 3 . . . . . . . . . 4 . . 1 . 2 . . . Open Door 20 | . . . . . . 1 . . . 1 5 1 . . . 1 1 . . . . . . 5 4 1 Level Access Points 3 | . . . . . . . . . . . . . . 1 . . . . . . 1 . . 1 . . Branch Access Points 2 | . . . . . . . . . . . . . . . . . . . . . . 1 . . 1 . Machine Index 1 | . . . . . . . . . . . . . . . . . . . . . . 1 . . . . Terminal Index 4 | . . . . . . . . . . . . . . . 1 . . . . . 1 . . 1 . 1 Alert Level 1 | . . . . . . . . . . . . . . . . . . . . . . . 1 . . . Unreport Threat 4 | . . . . . . . . . . . . . . 1 . . . . . . . . 2 . . 1 Locate Traps 1 | . . . . . . . . . . . . . . . . . . . . . 1 . . . . . Transport Status 1 | . . . . . . . . . . . . . . . . . . . . . . . 1 . . . Assault Status 1 | . . . . . . . . . . . . . . . . . . . . . . . . . 1 . Recall Extermination 3 | . . . . . . . . . . . . . . . . . . . . . . . 1 1 1 . Recall Reinforcements 2 | . . . . . . . . . . . . . . . . . . . . . . . . 1 1 . Hauler Manifests 1 | . . . . . . . . . . . . . . . . . . . . . . . 1 . . . Proto ID Catalog 1 | . . 1 . . . . . . . . . . . . . . . . . . . . . . . . Fabricator Hacks 5 | . . . . . . . . . . . . . . . 1 . . . . 3 1 . . . . . Network Status 2 | . . . . . . . . . . . . . . . 1 . . . . 1 . . . . . . Load Schematic 1 | . . . . . . . . . . . . . . . . . . . . 1 . . . . . . Build 2 | . . . . . . . . . . . . . . . . . . . . 1 1 . . . . . Repair Station Hacks 23 | . . . . . . . . . . . . . . . . . . . . . 7 4 6 2 2 2 Scan Component 12 | . . . . . . . . . . . . . . . . . . . . . 4 2 3 1 1 1 Repair 11 | . . . . . . . . . . . . . . . . . . . . . 3 2 3 1 1 1 Recycling Unit Hacks 1 | . . . 1 . . . . . . . . . . . . . . . . . . . . . . . Retrieve Components 1 | . . . 1 . . . . . . . . . . . . . . . . . . . . . . . Scanalyzer 32 | . . . . . 3 . . . . . . . . . 3 . . . . 10 . 5 6 3 2 . Insert Component 20 | . . . . . 1 . . . . . . . . . 2 . . . . 5 . 3 4 3 2 . Analyze 12 | . . . . . 2 . . . . . . . . . 1 . . . . 5 . 2 2 . . . Garrison Access Hacks 6 | . . . . . . . . . . . . . . 1 . . . . . . 1 . 1 . 3 . Seal Access 6 | . . . . . . . . . . . . . . 1 . . . . . . 1 . 1 . 3 . Unauthorized Hacks 51 | . . . 14 . 2 . . . . 2 5 . . 3 5 . . . . 1 10 2 4 1 . 2 Terminals 38 | . . . 8 . . . . . . . 3 . . 3 5 . . . . . 10 2 4 1 . 2 Track 1 | . . . . . . . . . . . . . . . . . . . . . 1 . . . . . Assimilate 4 | . . . . . . . . . . . . . . . 1 . . . . . 2 . . 1 . . Botnet 17 | . . . 2 . . . . . . . 3 . . 2 1 . . . . . 2 1 4 . . 2 Operators 1 | . . . . . . . . . . . . . . . . . . . . . 1 . . . . . Skim 14 | . . . 6 . . . . . . . . . . . 3 . . . . . 4 1 . . . . Sabotage 1 | . . . . . . . . . . . . . . 1 . . . . . . . . . . . . Fabricators . | . . . . . . . . . . . . . . . . . . . . . . . . . . . Repair Stations 1 | . . . . . . . . . . . 1 . . . . . . . . . . . . . . . Patch 1 | . . . . . . . . . . . 1 . . . . . . . . . . . . . . . Recycling Units 12 | . . . 6 . 2 . . . . 2 1 . . . . . . . . 1 . . . . . . Reject 1 | . . . 1 . . . . . . . . . . . . . . . . . . . . . . . Mask 1 | . . . 1 . . . . . . . . . . . . . . . . . . . . . . . Tunnel 4 | . . . 4 . . . . . . . . . . . . . . . . . . . . . . . Fedlink 5 | . . . . . 2 . . . . 2 . . . . . . . . . 1 . . . . . . Scrapoids 1 | . . . . . . . . . . . 1 . . . . . . . . . . . . . . . Scanalyzers . | . . . . . . . . . . . . . . . . . . . . . . . . . . . Garrison Access . | . . . . . . . . . . . . . . . . . . . . . . . . . . . Data Cores Recovered 1 | . . . . . . . . . . . . . . . . . . . . . . . 1 . . . Used . | . . . . . . . . . . . . . . . . . . . . . . . . . . . Hacking Detections 82 | . 2 . 6 . 5 . . . . 1 7 1 . 2 6 . . . . 6 9 4 10 9 8 6 Full Trace Events 3 | . . . . . . . . . . . . . . . . . . . . . . . . . 1 2 Feedback Events . | . . . . . . . . . . . . . . . . . . . . . . . . . . . Feedback Blocked . | . . . . . . . . . . . . . . . . . . . . . . . . . . . Robot Schematics Acquired 4 | . . . . . . . . 4 . . . . . . . . . . . . . . . . . . Robots Built 2 | . . . . . . . . . . . . . . . . . . . . 2 . . . . . . Authchips . | . . . . . . . . . . . . . . . . . . . . . . . . . . . Time 50 | . . . . . . . . . . . . . . . . . . . . 50 . . . . . . Total Robot Build Rating 10 | . . . . . . . . . . . . . . . . . . . . 10 . . . . . . Part Schematics Acquired 24 | . . . . . 1 . . 11 . . . . . . 1 . . 4 . 3 . 2 2 . . . Parts Built 1 | . . . . . . . . . . . . . . . . . . . . . 1 . . . . . Authchips . | . . . . . . . . . . . . . . . . . . . . . . . . . . . Time 46 | . . . . . . . . . . . . . . . . . . . . . 46 . . . . . Total Part Build Rating 9 | . . . . . . . . . . . . . . . . . . . . . 9 . . . . . Parts Repaired 11 | . . . . . . . . . . . . . . . . . . . . . 3 2 3 1 1 1 Time 396 | . . . . . . . . . . . . . . . . . . . . . 132 82 84 50 24 24 Parts Recycled . | . . . . . . . . . . . . . . . . . . . . . . . . . . . Recycled Matter . | . . . . . . . . . . . . . . . . . . . . . . . . . . . Retrieved Matter . | . . . . . . . . . . . . . . . . . . . . . . . . . . . Retrieved Components 5 | . . . 5 . . . . . . . . . . . . . . . . . . . . . . . Parts Scanalyzed 10 | . . . . . 1 . . . . . . . . . 1 . . . . 4 . 2 2 . . . Part Schematics Acquired 9 | . . . . . 1 . . . . . . . . . 1 . . . . 3 . 2 2 . . . Parts Damaged 2 | . . . . . . . . . . . . . . . . . . . . . . 1 1 . . . Bothacking | -11 -10 -10 -8 -8 -6 -6 -6 -6 -5 -5 -5 -5 -5 -5 -4 -4 -4 -4 -3 -3 -3 -2 -2 -2 -1 -1 ------------ Run | Yrd Mat Sub Rec Scr Fac Low Low Dat Pro Fac Ext Cet Arc Hub Fac Upp Upp Zhi Pro Res Tes Res Qua Sec Acc Com Used RIF Installer . | . . . . . . . . . . . . . . . . . . . . . . . . . . . Robots Hacked . | . . . . . . . . . . . . . . . . . . . . . . . . . . . Non-combat . | . . . . . . . . . . . . . . . . . . . . . . . . . . . Combat . | . . . . . . . . . . . . . . . . . . . . . . . . . . . Robot Hacks Applied . | . . . . . . . . . . . . . . . . . . . . . . . . . . . Relay Couplers Released . | . . . . . . . . . . . . . . . . . . . . . . . . . . . Fabnet Peak Effective % . | . . . . . . . . . . . . . . . . . . . . . . . . . . . Robots Rewired 18 | . . . . . . . . . . . 18 . . . . . . . . . . . . . . . Allies Hacked 2 | . . . . . . . . . . . 2 . . . . . . . . . . . . . . . Hacks Repelled . | . . . . . . . . . . . . . . . . . . . . . . . . . . . Allies | -11 -10 -10 -8 -8 -6 -6 -6 -6 -5 -5 -5 -5 -5 -5 -4 -4 -4 -4 -3 -3 -3 -2 -2 -2 -1 -1 -------- Run | Yrd Mat Sub Rec Scr Fac Low Low Dat Pro Fac Ext Cet Arc Hub Fac Upp Upp Zhi Pro Res Tes Res Qua Sec Acc Com Total Allies 39 | . . . . . . . . . . . 29 5 . . 1 . . . . 2 1 . . 1 . . Largest Group 19 | . . . . . . . . . . . 19 19 7 5 1 . . . . 2 1 1 . 1 . . Highest-Rated Group 833 | . . . . . . . . . . . 661 833 650 480 10 . . . . 28 10 10 . 45 . . Highest-Rated Ally 159 | . . . . . . . . . . . 159 153 153 96 10 . . . . 14 10 10 . 45 . . Total Orders 7 | . . . . . . . . . . . . 1 2 4 . . . . . . . . . . . . STAY 2 | . . . . . . . . . . . . 1 1 . . . . . . . . . . . . . FOLLOW 1 | . . . . . . . . . . . . . 1 . . . . . . . . . . . . . EXPLORE 4 | . . . . . . . . . . . . . . 4 . . . . . . . . . . . . Ally Attacks 278 | . . . . . . . . . . . 116 57 29 73 . . . . . 3 . . . . . . Total Damage 8137 | . . . . . . . . . . . 2497 1434 1173 3033 . . . . . . . . . . . . Kills 43 | . . . . . . . . . . . 12 7 4 20 . . . . . . . . . . . . Allies Corrupted 3 | . . . . . . . . . . . 1 . . 2 . . . . . . . . . . . . Allies Melted 1 | . . . . . . . . . . . 1 . . . . . . . . . . . . . . . Intel | -11 -10 -10 -8 -8 -6 -6 -6 -6 -5 -5 -5 -5 -5 -5 -4 -4 -4 -4 -3 -3 -3 -2 -2 -2 -1 -1 ------- Run | Yrd Mat Sub Rec Scr Fac Low Low Dat Pro Fac Ext Cet Arc Hub Fac Upp Upp Zhi Pro Res Tes Res Qua Sec Acc Com Active Infowar (turns) 17955 | . . . . . 719 1165 889 235 497 490 11 . . 792 790 721 475 196 146 1115 1567 768 1763 2182 2752 682 Sensors 14777 | . . . . . 712 1165 889 235 497 490 11 . . 737 767 705 474 181 146 1115 1338 641 1559 1047 2068 . Structural 11450 | . . . . . 506 . . . 15 . . . . 744 747 706 472 196 146 1115 1347 674 1025 1656 1974 127 Cloaking 2461 | . . . . . . . . . . . . . . . . 16 1 . . 1 . . 539 1904 . . Jamming 10459 | . . . . . . . . . . . . . . . 133 . . . . 1113 1567 737 1386 2089 2752 682 Robot Analysis Total 11 | . . . . 7 . . . . . . . . . . . . . 4 . . . . . . . . Derelict Logs Recovered 12 | . . 1 . 4 . 2 1 . 1 . . . . . . 2 1 . . . . . . . . . Drone Launches 5 | . . . . . . . . . . . . . . 5 . . . . . . . . . . . . Drone Recoveries 2 | . . . . . . . . . . . . . . 2 . . . . . . . . . . . . Exploration | -11 -10 -10 -8 -8 -6 -6 -6 -6 -5 -5 -5 -5 -5 -5 -4 -4 -4 -4 -3 -3 -3 -2 -2 -2 -1 -1 ------------- Run | Yrd Mat Sub Rec Scr Fac Low Low Dat Pro Fac Ext Cet Arc Hub Fac Upp Upp Zhi Pro Res Tes Res Qua Sec Acc Com Turns Passed 30961 | 2 363 3608 1215 2771 1070 1165 889 235 497 605 1731 409 528 938 1199 721 475 196 146 1115 1567 768 1941 2217 2752 1838 Spaces Moved 17656 | 1 182 1586 467 1463 434 606 465 116 242 366 902 206 187 431 828 585 450 177 131 927 994 484 1332 1209 1640 1245 Core 640 | . . . . 126 . . . . . . . . . . . . . . . . . . . . . 514 Treads 4863 | . . 1580 467 1337 152 . . . . . 304 206 187 431 199 . . . . . . . . . . . Legs 12153 | 1 182 6 . . 282 606 465 116 242 366 598 . . . 629 585 450 177 131 927 994 484 1332 1209 1640 731 Wheels . | . . . . . . . . . . . . . . . . . . . . . . . . . . . Hover . | . . . . . . . . . . . . . . . . . . . . . . . . . . . Flight . | . . . . . . . . . . . . . . . . . . . . . . . . . . . Fastest Speed 50 | 120 120 160 250 50 160 187 187 187 187 115 120 160 160 160 90 100 100 100 100 100 105 108 108 110 114 50 Average Speed 140 | 120 186 213 250 186 198 187 187 187 187 116 134 160 160 160 111 100 100 100 100 102 108 108 109 110 114 101 Slowest Speed 350 | 120 190 250 250 350 250 187 187 187 187 120 320 160 160 160 270 100 100 100 100 106 182 108 179 110 114 260 Overloaded Moves . | . . . . . . . . . . . . . . . . . . . . . . . . . . . Propulsion Burnouts . | . . . . . . . . . . . . . . . . . . . . . . . . . . . Robots Hopped . | . . . . . . . . . . . . . . . . . . . . . . . . . . . Potential Cave-ins 16 | . . . . . 2 . . . . . . . . . 2 . . . . . . . 2 10 . . Cave-ins Triggered 1 | . . . . . . . . . . . . . . . . . . . . . . . . 1 . . Exploration Rate (%) 56 | 2 33 95 97 87 12 77 66 70 42 7 88 66 77 41 30 72 90 60 30 36 89 10 91 64 48 35 Regions Visited 26 Branch Regions 19 Pre-discovered Areas 21 | . . 1 7 6 1 . . 1 . . . . . . . 2 . 3 . . . . . . . . Known Exits Taken 23 | . . . 1 1 1 1 1 1 1 1 1 1 1 1 1 1 1 1 1 1 1 1 1 1 1 . Unknown Exits Taken 3 | 1 1 1 . . . . . . . . . . . . . . . . . . . . . . . . Scrap Searched 23 | . . 4 . 4 . 3 2 . 3 . . . . . . 2 4 . 1 . . . . . . . Spaces Dug 259 | . . 23 . . 12 8 6 1 21 17 . . . 8 15 8 . . 19 4 14 8 27 27 25 16 Terrain Destroyed 1355 | . . 41 2 . 53 15 10 5 54 111 28 5 26 24 60 17 . . 19 17 35 18 103 108 163 441 Melee . | . . . . . . . . . . . . . . . . . . . . . . . . . . . Projectile 528 | . . 5 2 . 25 15 10 5 15 25 28 5 26 24 60 17 . . 4 17 35 18 50 68 48 26 AOE 827 | . . 36 . . 28 . . . 39 86 . . . . . . . . 15 . . . 53 40 115 415 Terrain Rammed . | . . . . . . . . . . . . . . . . . . . . . . . . . . . Walls Destroyed . | . . . . . . . . . . . . . . . . . . . . . . . . . . . Machines Disabled . | . . . . . . . . . . . . . . . . . . . . . . . . . . . Actions | -11 -10 -10 -8 -8 -6 -6 -6 -6 -5 -5 -5 -5 -5 -5 -4 -4 -4 -4 -3 -3 -3 -2 -2 -2 -1 -1 --------- Run | Yrd Mat Sub Rec Scr Fac Low Low Dat Pro Fac Ext Cet Arc Hub Fac Upp Upp Zhi Pro Res Tes Res Qua Sec Acc Com Total 21879 | 1 205 1721 496 1516 586 623 475 127 269 484 1276 266 349 614 1015 701 474 194 139 1048 1355 694 1667 1805 2195 1584 Wait 1904 | . 2 50 17 . 30 6 5 3 6 65 85 10 121 115 58 91 17 . 2 61 186 125 158 339 251 101 Move 17630 | . 181 1585 466 1462 433 605 464 115 241 365 901 205 186 430 827 584 449 176 130 926 993 484 1331 1207 1639 1245 Hop . | . . . . . . . . . . . . . . . . . . . . . . . . . . . Pick Up 206 | . 13 12 . 24 24 1 . . 2 1 10 10 . 5 10 3 5 3 . 8 9 12 11 11 16 16 Fast Attach 105 | . 2 . . 8 8 . . 2 1 . 2 2 3 2 12 . . 4 . . 21 1 5 9 6 17 Attach 66 | . . 2 . 3 11 . . . . 3 2 1 . 4 6 . . . . 2 2 4 1 6 5 14 Detach 5 | . . . . . . . . . . . . . . . . . . . . . . . . . 1 4 Swap 483 | 1 . 15 2 2 20 1 . . 6 9 19 7 4 11 23 5 2 5 2 12 53 17 49 63 106 49 Drop 243 | . 5 13 . 17 22 2 . 2 3 3 17 17 2 5 20 . 1 6 . 13 22 14 14 12 13 20 Fire 1043 | . 2 44 5 . 36 8 5 5 10 38 76 14 32 39 59 17 . . 5 26 67 37 98 157 152 111 Melee . | . . . . . . . . . . . . . . . . . . . . . . . . . . . Ram 4 | . . . . . . . . . . . . . . . . . . . . . . . . . . 4 Kick 19 | . . . . . . . . . . . 8 . . . . 1 . . . . 2 . . . 6 2 Crush 11 | . . . 6 . . . . . . . 1 . 1 3 . . . . . . . . . . . . Escape Stasis 3 | . . . . . 2 . . . . . . . . . . . . . . . . . . 1 . . Rewire 157 | . . . . . . . 1 . . . 155 . . . . . . . . . . . . . . 1 Trap . | . . . . . . . . . . . . . . . . . . . . . . . . . . . Miscellaneous . | . . . . . . . . . . . . . . . . . . . . . . . . . . . Route ------- -11/Scrapyard -10/Materials (discovered 2 exits: [*Mat] / *Sub) -10/Subcaves (discovered 3 exits: [*Mat x2] / *Rec) -8/Recycling (discovered 2 exits: *Fac / *Scr) -8/Scraptown (discovered 2 exits: *Fac x2) -6/Factory (discovered 4 exits: Fac x2 / *Low x2) -6/Lower Caves -6/Lower Caves (discovered 2 exits: *Fac / *Dat) -6/Data Miner -5/Proximity Caves -5/Factory (discovered 3 exits: Upp x2 / *Ext) -5/Extension (discovered 3 exits: *Fac x2 / *Cet) -5/Cetus (discovered 2 exits: *Fac / *Arc) -5/Archives (discovered 3 exits: *Fac / *Hub x2) -5/Hub_04(d) (discovered 4 exits: *Fac x4) -4/Factory (discovered 4 exits: *Res x2 / *Upp x2) -4/Upper Caves -4/Upper Caves (discovered 2 exits: Res / *Zhi) -4/Zhirov -3/Proximity Caves -3/Research (discovered 5 exits: *Res x2 / Arm / *Tes x2) -3/Testing -2/Research (discovered 2 exits: *Qua x2) -2/Quarantine (discovered 3 exits: *Acc / *Sec / [*Frg]) -2/Section 7 -1/Access (discovered 2 exits: [*Sur] / *Com) -1/Command History --------- Turn | Location | Event 3 | -11/Scrapyard | Discovered new exit (range 0) 3 | -11/Scrapyard | Entered Materials 299 | -10/Materials | Discovered new exit (range 8) 307 | -10/Materials | Build established: Mutant 351 | -10/Materials | Discovered new exit (range 9) 366 | -10/Materials | Entered Subcaves 666 | -10/Subcaves | A swath of the cavern ceiling suddenly collapsed 950 | -10/Subcaves | Learned location of Zion (-7) 950 | -10/Subcaves | Met a Zionite searching for "candidates" 1001 | -10/Subcaves | Visited Clippyterm 1006 | -10/Subcaves | Learned Factory fabricator intel 1080 | -10/Subcaves | Discovered new exit (range 8) 1278 | -10/Subcaves | Discovered new exit (range 16) 1402 | -10/Subcaves | Shifting Twisted Machinery released Mak. Light Armor Plating 1453 | -10/Subcaves | Shifting Twisted Machinery released Sub. Beam Cannon 2892 | -10/Subcaves | Discovered new exit (range 7) 2913 | -10/Subcaves | Shifting Twisted Machinery released Sub. Beam Cannon 3547 | -10/Subcaves | Shifting Twisted Machinery released Sub. Beam Cannon 3561 | -10/Subcaves | Shifting Twisted Machinery released Shrapnel Trap 3825 | -10/Subcaves | Visited 4L-MR0's lab 3836 | -10/Subcaves | Learned Materials terminal intel 3855 | -10/Subcaves | Found Power Bank 3968 | -10/Subcaves | Core integrity fell below 50% 3974 | -10/Subcaves | Entered Recycling 4756 | -8/Recycling | Learned Factory trap positions 4808 | -8/Recycling | Identified exit to Scraptown 4851 | -8/Recycling | Identified exit to Factory 4882 | -8/Recycling | Learned location of 1 exit from Extension 4917 | -8/Recycling | Learned Factory emergency access door positions 4929 | -8/Recycling | Learned Factory trap positions 4950 | -8/Recycling | Learned location of Lower Caves (-7) 4983 | -8/Recycling | Learned location of 1 exit from Lower Caves 5124 | -8/Recycling | Scanned before Scraplab entrance 5162 | -8/Recycling | Entered Scraplab 5189 | -8/Recycling | Entered Scraptown 5429 | -8/Scraptown | Visited UFD Registry 5429 | -8/Scraptown | Registered with UFD as "Plasmasys" 5564 | -8/Scraptown | Scanned Subdweller tech in exchange for log data 5569 | -8/Scraptown | Learned Research stockpile data 5572 | -8/Scraptown | Learned Factory stockpile data 5574 | -8/Scraptown | Learned location of Quarantine (-2) 5577 | -8/Scraptown | Learned Factory terminal intel 5809 | -8/Scraptown | Visited Scrapoid Pod Storage 5939 | -8/Scraptown | Visited Cartography Club 6174 | -8/Scraptown | Visited Assassins FH 6197 | -8/Scraptown | Visited Cyclists 6217 | -8/Scraptown | Entered Cyclist Reading Room 6269 | -8/Scraptown | Visited Spacefarers 6299 | -8/Scraptown | Visited SPCMW 6334 | -8/Scraptown | Visited Red Mages 6359 | -8/Scraptown | Visited Symbiants 6442 | -8/Scraptown | Visited TADAMA 7165 | -8/Scraptown | Visited Junk Repository 7239 | -8/Scraptown | Visited Analyses Database 7449 | -8/Scraptown | Visited Research Penetration Think Tank 7484 | -8/Scraptown | Visited Scrap Suit Storage 7511 | -8/Scraptown | Visited Supply Room 7582 | -8/Scraptown | Released all parts (7) 7632 | -8/Scraptown | Found Deep Structural Scanner 7638 | -8/Scraptown | Learned location of Lower Caves (-7) 7638 | -8/Scraptown | Learned 12 Factory zone layouts 7638 | -8/Scraptown | Learned 24 Factory zone layouts 7638 | -8/Scraptown | Learned Storage emergency access door positions 7638 | -8/Scraptown | Learned 8 Lower Caves zone layouts 7638 | -8/Scraptown | Learned 8 Upper Caves zone layouts 7638 | -8/Scraptown | Learned 12 Proximity Caves zone layouts 7638 | -8/Scraptown | Learned location of 2 exits from Research 7638 | -8/Scraptown | Learned location of 2 exits from Upper Caves 7638 | -8/Scraptown | Learned location of 1 exit from Proximity Caves 7730 | -8/Scraptown | Visited Infowarlord's Domain 7739 | -8/Scraptown | Found Exp. Sensor Array 7770 | -8/Scraptown | Visited Chapter 10 7871 | -8/Scraptown | Met Optimus 7871 | -8/Scraptown | Accepted into 0bPrime 7939 | -8/Scraptown | Civil war broke out across Scraptown 7953 | -8/Scraptown | Discovered exit to Factory (range 3) 7960 | -8/Scraptown | Entered Factory 7960 | -6/Factory | Evolved 8 slots: Propulsion x2, Utility x6 7961 | -6/Factory | Identified exit to Factory 7961 | -6/Factory | Identified exit to Lower Caves 7962 | -6/Factory | Loaded intel: 91 trap records 7965 | -6/Factory | Loaded intel: 24 terminal locations 7966 | -6/Factory | Loaded intel: 6 fabricator locations 8148 | -6/Factory | Attached Power Bank, gained temporary slots: Power x3 8187 | -6/Factory | Loaded intel: 8 recycling unit locations 8745 | -6/Factory | Learned location of Protoforge (-2) 9030 | -6/Factory | Entered Lower Caves 9031 | -6/Lower Caves | Identified exit to Lower Caves 9112 | -6/Lower Caves | Build established: Generator-Mutant 10195 | -6/Lower Caves | Entered another Lower Caves area 10352 | -6/Lower Caves | Discovered exit to Factory (range 8) 10363 | -6/Lower Caves | Learned Factory machine intel 10480 | -6/Lower Caves | Encountered a Warlord checkpoint 10843 | -6/Lower Caves | Discovered new exit (range 10) 10872 | -6/Lower Caves | Identified exit to Data Miner 11084 | -6/Lower Caves | Entered Data Miner 11086 | -6/Data Miner | Discovered new exit (range 6) 11121 | -6/Data Miner | Met Data Miner 11170 | -6/Data Miner | Learned location of Section 7 (-2) 11170 | -6/Data Miner | Acquired the access code to Warlord's prototype stash 11186 | -6/Data Miner | Received God Mode back door access code from Data Miner 11294 | -6/Data Miner | Identified exit to Proximity Caves 11319 | -6/Data Miner | Entered Proximity Caves 11656 | -5/Proximity Caves | Spotter reported a threat 11678 | -5/Proximity Caves | Spotter reported a threat 11703 | -5/Proximity Caves | Learned Factory trap positions 11816 | -5/Proximity Caves | Entered Factory 11816 | -5/Factory | Evolved 2 slots: Propulsion x2 11817 | -5/Factory | Identified exit to Upper Caves 11818 | -5/Factory | Loaded intel: 93 trap records 11819 | -5/Factory | Loaded intel: 303 machine locations 11904 | -5/Factory | Loaded intel: 8 recycling unit locations 12396 | -5/Factory | Garrison activated, responded to threat 12411 | -5/Factory | Discovered new exit (range 10) 12420 | -5/Factory | Identified exit to Extension 12421 | -5/Factory | Entered Extension 12422 | -5/Extension | Identified exit to Factory 12656 | -5/Extension | Build established: Scavenger-Mutant 13179 | -5/Extension | Rescued a captive Derelict 13212 | -5/Extension | Scrapoids reinforcements arrived? 13344 | -5/Extension | Spotted B-75 Beast 13351 | -5/Extension | Allies destroyed B-75 Beast 13355 | -5/Extension | Spotted B-75 Beast 13367 | -5/Extension | Allies destroyed B-75 Beast 13397 | -5/Extension | Build established: Commander-Mutant 13421 | -5/Extension | Disrupted transfer network 13537 | -5/Extension | Lost 4 allies 13556 | -5/Extension | Rescued a captive Derelict 13585 | -5/Extension | Rescued a captive Derelict 13586 | -5/Extension | Rescued a captive Derelict 13648 | -5/Extension | Rescued A7 13949 | -5/Extension | Lost 3 allies 13964 | -5/Extension | Rescued a captive Derelict 14053 | -5/Extension | Discovered exit to Factory (range 10) 14054 | -5/Extension | Discovered new exit (range 6) 14067 | -5/Extension | Identified exit to Cetus 14152 | -5/Extension | Entered Cetus 14152 | -5/Cetus | Accompanied by 19 allies (A7) 14157 | -5/Cetus | Acquired a Cetus Manufacturing Module code from A7 14172 | -5/Cetus | Spotted Cetus Guard 14173 | -5/Cetus | Spotted Cetus Guard 14177 | -5/Cetus | Spotted Cetus Guard 14180 | -5/Cetus | Spotted Cetus Guard 14189 | -5/Cetus | Allies destroyed Cetus Guard 14192 | -5/Cetus | Allies destroyed Cetus Guard 14198 | -5/Cetus | Destroyed Cetus Guard 14207 | -5/Cetus | Allies destroyed Cetus Guard 14237 | -5/Cetus | Lost 8 allies 14334 | -5/Cetus | Escorted A7 to Cetus Mainframe 14349 | -5/Cetus | Started Cetus Manufacturing Module 14368 | -5/Cetus | Discovered new exit (range 15) 14374 | -5/Cetus | Manufactured an Enhanced Grunt 14399 | -5/Cetus | Manufactured an Enhanced Grunt 14402 | -5/Cetus | Spotted Cetus Guard 14403 | -5/Cetus | Spotted Cetus Guard 14418 | -5/Cetus | Allies destroyed Cetus Guard 14418 | -5/Cetus | Spotted Cetus Guard 14421 | -5/Cetus | Destroyed Cetus Guard 14423 | -5/Cetus | Allies destroyed Cetus Guard 14424 | -5/Cetus | Manufactured an Enhanced Grunt 14431 | -5/Cetus | Destroyed Cetus Guard 14440 | -5/Cetus | Discovered exit to Factory (range 16) 14448 | -5/Cetus | Met Revision 17 14449 | -5/Cetus | Manufactured an Enhanced Grunt 14474 | -5/Cetus | Manufactured an Enhanced Grunt 14549 | -5/Cetus | Identified exit to Archives 14561 | -5/Cetus | Entered Archives 14561 | -5/Archives | Accompanied by 7 allies (A7) 14566 | -5/Archives | Received a hacking code to weaken MAIN.C 14642 | -5/Archives | Discovered new exit (range 15) 14665 | -5/Archives | Identified exit to Hub_04(d) 14857 | -5/Archives | Build established: Scavenger-Mutant 14885 | -5/Archives | Discovered exit to Hub_04(d) (range 16) 14991 | -5/Archives | Discovered exit to Factory (range 14) 15089 | -5/Archives | Entered Hub_04(d) 15089 | -5/Hub_04(d) | Accompanied by 5 allies 15459 | -5/Hub_04(d) | Build established: Scavenger-Skirmisher 15808 | -5/Hub_04(d) | Network Hub disabled 15833 | -5/Hub_04(d) | Spotted Lightning 15871 | -5/Hub_04(d) | Lost 4 allies 15942 | -5/Hub_04(d) | Lost 3 parts (3u) 15989 | -5/Hub_04(d) | First assault squad dispatched 16027 | -5/Hub_04(d) | Entered Factory 16027 | -4/Factory | Evolved 2 slots: Power x1, Weapon x1 16028 | -4/Factory | Identified exit to Upper Caves 16029 | -4/Factory | Loaded intel: 95 trap records 16332 | -4/Factory | Build established: Scavenger-Tank 16546 | -4/Factory | Discovered new exit (range 10) 16558 | -4/Factory | Identified exit to Research 16690 | -4/Factory | Build established: Scavenger-Skirmisher 16788 | -4/Factory | Spotted B-86 Titan 17101 | -4/Factory | Discovered exit to Research (range 12) 17226 | -4/Factory | Entered Upper Caves 17227 | -4/Upper Caves | Identified exit to Upper Caves 17754 | -4/Upper Caves | Learned location of Armory (-3) 17941 | -4/Upper Caves | Attracted the attention of an 0b10 checkpoint 17947 | -4/Upper Caves | Entered another Upper Caves area 18153 | -4/Upper Caves | Learned 4 Research zone layouts 18397 | -4/Upper Caves | Discovered new exit (range 10) 18407 | -4/Upper Caves | Identified exit to Zhirov 18422 | -4/Upper Caves | Entered Zhirov 18424 | -4/Zhirov | Discovered new exit (range 3) 18442 | -4/Zhirov | Met Zhirov 18460 | -4/Zhirov | Learned location of Testing (-3) 18460 | -4/Zhirov | Learned location of Command (-1) 18469 | -4/Zhirov | Zhirov requested help retrieving the SGEMP Prototype 18484 | -4/Zhirov | Found Alien Artifact 18484 | -4/Zhirov | Identified Integrated Dissipator 18484 | -4/Zhirov | Installed Integrated Dissipator, increased core heat dissipation (+20) 18535 | -4/Zhirov | Found Alien Artifact 18617 | -4/Zhirov | Identified exit to Proximity Caves 18618 | -4/Zhirov | Entered Proximity Caves 18749 | -3/Proximity Caves | Discovered exit to Research (range 16) 18764 | -3/Proximity Caves | Entered Research 18764 | -3/Research | Evolved 2 slots: Utility x2 18765 | -3/Research | Identified exit to Armory 18766 | -3/Research | Identified exit to Testing 18766 | -3/Research | Identified exit to Research 18776 | -3/Research | Identified Transdimensional Reconstructor 18964 | -3/Research | Revision forces began assault on 0b10 18972 | -3/Research | Met up with Revision 17++ 19053 | -3/Research | Build established: Hacker-Skirmisher 19057 | -3/Research | Found Prototype Processor 19084 | -3/Research | Discovered exit to Research (range 6) 19136 | -3/Research | Lost 4 allies 19166 | -3/Research | Identified Exp. Targeting Computer 19192 | -3/Research | Found Fusion Bomb Launcher 19250 | -3/Research | Discovered exit to Testing (range 13) 19432 | -3/Research | Found Fusion Bomb Launcher 19464 | -3/Research | Research terminal network offline 19559 | -3/Research | Fabricated E-15 Imp? 19562 | -3/Research | Spotted Striker 19564 | -3/Research | Spotted Executioner 19622 | -3/Research | Lost 3 allies 19643 | -3/Research | Loaded intel: 5 recycling unit locations 19879 | -3/Research | Entered Testing 19957 | -3/Testing | Fabricated Centrium Leg? 20285 | -3/Testing | Repaired Quantum Reactor 20341 | -3/Testing | Repaired Centrium Medium Armor Plating 21027 | -3/Testing | Repaired Broken Adv. KE Penetrator 21210 | -3/Testing | Found Prototype Energy Cannon 21210 | -3/Testing | Identified Potential Cannon 21213 | -3/Testing | Found Prototype Energy Cannon 21213 | -3/Testing | Identified Imp. Potential Cannon 21251 | -3/Testing | Found Prototype Energy Cannon 21251 | -3/Testing | Identified Null Cannon 21329 | -3/Testing | Found Prototype Leg 21329 | -3/Testing | Identified Myomer Exoskeleton 21446 | -3/Testing | Entered Research 21446 | -2/Research | Accompanied by 1 ally 21446 | -2/Research | Evolved 2 slots: Power x1, Propulsion x1 21481 | -2/Research | Identified exit to Quarantine 22005 | -2/Research | Repaired Adv. Transmission Jammer 22058 | -2/Research | Repaired Corrupted Adv. Phase Shifter 22214 | -2/Research | Entered Quarantine 22289 | -2/Quarantine | Cryocooling Duct disabled 22304 | -2/Quarantine | Ambient heat levels rising (+20) 22304 | -2/Quarantine | Non-combat units ordered to evacuate 22501 | -2/Quarantine | Repaired Lyr. Medium Armor Plating 22510 | -2/Quarantine | Discovered new exit (range 8) 22516 | -2/Quarantine | Identified exit to Access 22662 | -2/Quarantine | Repaired Nova Cannon 22697 | -2/Quarantine | Repaired Imp. Thunder Leg 22825 | -2/Quarantine | Found Exp. EM Shield 22865 | -2/Quarantine | Build established: Scavenger-Skirmisher 22975 | -2/Quarantine | Found Prototype Device 22979 | -2/Quarantine | Identified Thermal Barrier 23586 | -2/Quarantine | Found Alien Artifact 23804 | -2/Quarantine | Found Alien Artifact 23814 | -2/Quarantine | Identified Core Reset Matrix 23814 | -2/Quarantine | Identified Dimensional Node Initializer 23900 | -2/Quarantine | Build established: Hacker-Skirmisher 24067 | -2/Quarantine | Spotted Fortress 24143 | -2/Quarantine | Discovered new exit (range 5) 24143 | -2/Quarantine | Discovered new exit (range 6) 24147 | -2/Quarantine | Identified exit to Section 7 24155 | -2/Quarantine | Entered Section 7 24215 | -2/Section 7 | Repaired Lyr. Medium Armor Plating 24238 | -2/Section 7 | Spotted S7 Guard 24275 | -2/Section 7 | Destroyed S7 Guard 24294 | -2/Section 7 | Found Integrated Dissipator 24294 | -2/Section 7 | Installed Integrated Dissipator, increased core heat dissipation (+20) 24313 | -2/Section 7 | Found Corrupted Prototype Protection 24321 | -2/Section 7 | Found Alien Artifact 24401 | -2/Section 7 | Found Alien Artifact 24401 | -2/Section 7 | Identified Integrity Redistributor 24401 | -2/Section 7 | Used Integrity Redistributor, redistributed integrity from core (-127) 24416 | -2/Section 7 | Found Prototype Device 24416 | -2/Section 7 | Identified Imp. Particle Accelerator 25079 | -2/Section 7 | Identified Core Physics Calibrator 25236 | -2/Section 7 | Found Alien Artifact 25236 | -2/Section 7 | Identified Integrated Reactor 25236 | -2/Section 7 | Installed Integrated Reactor, increased core energy generation (+10) 25279 | -2/Section 7 | Found Alien Artifact 25279 | -2/Section 7 | Identified LRC Inertial Stabilizer 25279 | -2/Section 7 | Installed LRC Inertial Stabilizer, increased mass support (+10) 25282 | -2/Section 7 | Found Alien Artifact 25282 | -2/Section 7 | Identified LRC Matter Compressor 25282 | -2/Section 7 | Installed LRC Matter Compressor, increased matter storage capacity (+125) 25305 | -2/Section 7 | Build established: Hacker-Tank 25328 | -2/Section 7 | Found Integrated Dissipator 25328 | -2/Section 7 | Installed Integrated Dissipator, increased core heat dissipation (+20) 25383 | -2/Section 7 | Crushed by falling debris 25460 | -2/Section 7 | Found Alien Artifact 25811 | -2/Section 7 | Found Prototype Hackware 26021 | -2/Section 7 | System corruption reached 10% 26114 | -2/Section 7 | Found Integrity Redistributor 26114 | -2/Section 7 | Used Integrity Redistributor, redistributed integrity from core (-223) 26155 | -2/Section 7 | First assault squad dispatched 26155 | -2/Section 7 | Found Alien Artifact 26155 | -2/Section 7 | Identified Integrated Mediator 26155 | -2/Section 7 | Installed Integrated Mediator, increased core attachment efficiency 26162 | -2/Section 7 | Spotted B-90 Cyclops 26224 | -2/Section 7 | Identified Exp. Hacking Suite 26244 | -2/Section 7 | Identified Hvy. Regenerative Plating 26372 | -2/Section 7 | Entered Access 26372 | -1/Access | Evolved 2 slots: Propulsion x1, Utility x1 26420 | -1/Access | Identified Hpw. Transdimensional Reconstructor 26872 | -1/Access | First assault squad dispatched 27107 | -1/Access | Build established: Hacker-Skirmisher 27751 | -1/Access | Found Exp. EM Shield 27775 | -1/Access | Spotted B-99 Colossus 27776 | -1/Access | Spotted B-99 Colossus 27875 | -1/Access | Discovered new exit (range 11) 28218 | -1/Access | Identified exit to Command 28485 | -1/Access | Destroyed 10 combat bots 28679 | -1/Access | Spotted B-99 Colossus 28863 | -1/Access | Repaired Centrium Leg 29083 | -1/Access | High security lockdown imminent 29124 | -1/Access | Entered Command 29457 | -1/Command | Destroyed 9 combat bots 29592 | -1/Command | System corruption reached 10% 29624 | -1/Command | First assault squad dispatched 29639 | -1/Command | Repaired Quantum Reactor 29719 | -1/Command | Build established: Hacker-Gunner 29821 | -1/Command | Spotted M Guard 29822 | -1/Command | Spotted M Guard 29822 | -1/Command | Spotted Combat Programmer 29823 | -1/Command | Spotted Combat Programmer 29852 | -1/Command | Destroyed Combat Programmer 29889 | -1/Command | Destroyed M Guard 29923 | -1/Command | Destroyed M Guard 29947 | -1/Command | Lost 3 parts (1n2u) 29966 | -1/Command | Found Corrupted Prototype Device 29969 | -1/Command | Found Corrupted Prototype Reactor 29980 | -1/Command | Destroyed 15 combat bots 30027 | -1/Command | Destroyed Combat Programmer 30027 | -1/Command | All MAIN.C guards destroyed 30098 | -1/Command | Build established: Tank 30109 | -1/Command | Identified AEGIS Remote Shield 30222 | -1/Command | Destroyed 12 combat bots 30483 | -1/Command | Build established: Scavenger-Tank 30574 | -1/Command | 0b10 Conduit disabled 30575 | -1/Command | Met MAIN.C 30629 | -1/Command | System corruption reached 30% 30659 | -1/Command | Lost 5 parts (2n3u) 30692 | -1/Command | Identified Zero-point Reactor 30731 | -1/Command | Lost 4 parts (1p2n1u) 30831 | -1/Command | Core integrity fell below 50% 30943 | -1/Command | Core integrity fell below 20% 30962 | -1/Command | Destroyed by S-43 Plague with Heavy Machine Gun Last Messages --------------- 30837_ System corrupted: Matter fused (-8). 30837_ P-80 Master resets P-80 Master, system corruption cleaned. 30851_ K-01 Serf cleans the Machine. 30853_ HKUP25VOM2SB:ZZGBCJT9TC 7 K QLHEDL, S K= 30855_ Connecting with Cave Seal Controls... 30862_ Centrium Leg destroyed. 30868_ System corrupted: Heat flow error (+145). 30883_ System corrupted: Matter fused (-6). 30896_ Slammed into W-44 Eye. 30897_ W-44 Eye sends out distress signal. 30900_ System corrupted: Component data lost. 30914_ Adv. Targeting Computer destroyed. 30917_ System corrupted: Energy discharge (-259). 30921_ Adv. Myomer Leg destroyed. 30924_ Adv. Heavy Siege Treads destroyed. 30934_ System corrupted: Component data lost. 30942_ Centrium Leg destroyed. 30942_ S-43 Plague destroyed. 30949_ System corrupted: Matter fused (-7). 30951_ Centrium Leg destroyed. Map ----- +----------------------------------------------------+ | ?# # # # | | ## # # # | | # # # ######## | | # ! # """" # #??????# | | + # """" + #??????# # | | "# # """" # #??????# # | | ""# # """" # #??????# # | | ""# # # #??????# ##+#####/# | | ""# # # #??????# ## | | ""# # # #??????# ## | | T"# # !# #??????# ## | | ""#! #/#######+#### #??????# "" | | ""###+##### #???????? # #?????# ! # | | ""#?# #???# #?????? # #?????+ H # | | ""#?# #???# ##### ! + +?????# # | | ### ##### + # #?????# # | | ##### # ??????###??# | | #?????? # ???????????######### | | #????????### #??????????????????? | | ####?????????## ##?????????????????? | | ### ######## #??########### = #?????????????????? | | ??#+#??????# #??# #?????????????????? | | ???????????# #??# " ###############+### | | ???????????#+#########+#### | | ##?????????# o ##### sss s | | +?????????# @/ sss p | | ##?????????# ####################/### | | ???????????# #????????????????# #?? | | #??????????# """ """ #????????????????# #?? | | ##?????????# ! """T""" #????????????????# #?? | | #########/#+##############????????????????# #?? | | ??????????????????????????# ### | | ??????????????????????????# " | | ??????????????????????????# # | | ??????????????????????????##/## | | ##########/#####????????????????????????????# ?#+# | | #???????????????????????????????????????????# ?# | | ????????????????????????????????????????????# ?# = | | #???????????????????????????????????????????# ?# | | ####????????????????????????????????????????? ?# | | # #?????????????????????????????????????????#?# | | # ####????????????????????????????????????????# | | #????????????????????????????????????????### | | #??????????????????????????????????????????? | | #??????????????????????????????????????????? | | #??????????????????????????????????????????? | | #??????????????????????????????????????????? | | #??????????????????????????????????????????? | | #??????????????????????????????????????????? | | " #??????????????????????????????????????????? | +----------------------------------------------------+ Best States ------------- Heat Dissipation 140 Energy Generation 75 Energy Capacity 1440 Matter Stores 425 Matter Capacity 425 Sight Range 16 Robot Scan Range 20 Terrain Scan Density 10 Jamming Range 16 Cloak Strength 4 Base Temperature (-) 150 EM Shielding 4 Armor Coverage 1350 Resistance: KI 30 Resistance: TH 15 Resistance: EX 50 Resistance: EM 75 Point Defense Rating 160 Weapon Cycling 25 Phase Shifting 15 Evasion (%) 97 Targeting Accuracy 12 Core Analysis 6 Armor Integrity Analysis 30 Recoil Reduction 6 Particle Charging 40 Salvage Targeting 1 Offensive Hacking 44 Item Schematics ----------------- Imp. Hacking Suite | -6/Factory | Scanalyzed Combat Drone Bay | -6/Data Miner | Free Lgt. Regenerative Plating | -6/Data Miner | Free Cld. Gravmag System | -6/Data Miner | Free Prc. Matter Filter | -6/Data Miner | Free Tiamat Missile Launcher | -6/Data Miner | Free Imp. Linear Gravjet | -6/Data Miner | Free Adv. Actuator Array | -6/Data Miner | Free Dispersion Rifle | -6/Data Miner | Free Impulse Thruster Array | -6/Data Miner | Free Adv. Force Field | -6/Data Miner | Free Adv. Particle Charger | -6/Data Miner | Free Centrium Medium Armor Plating | -4/Factory | Scanalyzed Assault Drone Bay | -4/Zhirov | Free Exp. Heat Sink | -4/Zhirov | Free Exp. Optical Array | -4/Zhirov | Free Imp. Arc Thrower | -4/Zhirov | Free Lyr. Medium Armor Plating | -3/Research | Scanalyzed Adv. KE Penetrator | -3/Research | Scanalyzed Exp. Targeting Computer | -3/Research | Scanalyzed Hyp. Railgun | -2/Research | Scanalyzed Prc. Energy Filter | -2/Research | Scanalyzed Thermal Barrier | -2/Quarantine | Scanalyzed Adv. Reaction Control System | -2/Quarantine | Scanalyzed Robot Schematics ------------------ A-15 Conveyor | -6/Data Miner | Free S-27 Virus | -6/Data Miner | Free B-48 Gladiator | -6/Data Miner | Free L-41 Fighter | -6/Data Miner | Free Fabricated ------------ E-15 Imp | x2 | -3/Research | Preloaded Centrium Leg | x1 | -3/Testing | Preloaded Repaired ---------- Quantum Reactor | 18% | -3/Testing Centrium Medium Armor Plating | 67% | -3/Testing Adv. KE Penetrator | 68% | -3/Testing | Broken Adv. Transmission Jammer | 16% | -2/Research Adv. Phase Shifter | 92% | -2/Research | Corrupted Lyr. Medium Armor Plating | 74% | -2/Quarantine Nova Cannon | 23% | -2/Quarantine Imp. Thunder Leg | 22% | -2/Quarantine Lyr. Medium Armor Plating | 73% | -2/Section 7 Centrium Leg | 52% | -1/Access Quantum Reactor | 7% | -1/Command Alien Tech Used ----------------- Integrated Dissipator Integrity Redistributor Integrated Reactor LRC Inertial Stabilizer LRC Matter Compressor Integrated Mediator Achievements -------------- None Challenges ------------ None Game ------ Seed ArmorInsulationMediator Manual? 0 Play Time 04:21:00 Cumulative 415.7 hours Start 2025.08.16 @ 13:50:56 End 2025.08.26 @ 16:17:18 Sessions 21 Manual Loads 0 Difficulty Rogue Special Mode None Game No. 527 Rogue 527 Adventurer 0 Explorer 0 Win Type - Total 32 Types 16/1/9/1/1/1/0/1/1/1 Lore% 88 Gallery% 83 Achievement% 77 Wizard Run 0 Options --------- Layout 0 ASCII 0 Keyboard 0 Movement Numpad Keybinds 0 Fullscreen 1 Font 18/SmallcapsGlow Map View 76x50 Zoom Use 0% Tactical HUD 1 Map Filters NONE Filters NONE Steam 1 RUN: 1227f723-094f-4feb-b2f7-17b03f0bba5b